Cogmind - Beta 16 @@@ ROGUE MODE // 2025.11.07 @ 05:26:17 Player: Red Box Result: Destroyed by G-67 Veteran with Plasma Rifle Performance ------------- Evolutions (6) 3000 Regions Visited (10) 2000 Robots Destroyed (149) 745 Value Destroyed (7045) 7045 Prototype IDs (20) 400 Alien Tech Used (1) 200 Bonus (2779) 2779 TOTAL SCORE: 16169 Bonus ------- High Alert Combat Kills 868 Follower Combat Kills 111 Registered with UFD 300 Met Optimus in HQ 500 Met Warlord at Base 500 MAIN.C Attacked Warlord 500 Cogmind --------- Core Integrity 0/1150 Matter 88/300 Energy 15/100 System Corruption 40% Temperature Cool (21) Movement Treading (240) Ox1 Location -4/Factory Parts ------- > --- POWER (2) -------- (None) > --- PROPULSION (3) --- Improved Heavy Treads > --- UTILITY (11) ----- High-capacity Storage Unit Heavy Reactive Plating > --- WEAPON (3) ------- Thunder Hammer > --- INVENTORY (20) --- Improved Quantum Reactor Energy Well (350) Matter Compressor (0) Long-range Terrain Scanner Heavy Tesla Rifle Vortex Rifle (35) Vortex Rifle (35) Vortex Shotgun (50) Vortex Shotgun (50) Matter Neutralizer Helical Railgun Enhanced Hardcell Cannon Enhanced Hardcell Cannon Heavy Shock Bomb Launcher Peak State ------------ > --- POWER ------------ Antimatter Reactor Quantum Reactor > --- PROPULSION ------- Heavy Siege Treads Centrium Wheel > --- UTILITY ---------- Advanced Cryofiber Web High-capacity Storage Unit Improved Sensor Array Advanced Signal Interpreter Surveybot 24 Chip 0b10 Decoder Chip [Skirmisher] Improved Target Analyzer Experimental Core Analyzer System Shield Stealth Drone Bay > --- WEAPON ----------- Hypervelocity Railgun Hypervelocity Railgun Helical Railgun > --- INVENTORY -------- Quantum Reactor Improved Quantum Reactor Armored Medium Treads Energy Well Long-range Terrain Scanner Heavy Tesla Rifle Vortex Rifle Vortex Rifle Vortex Shotgun Vortex Shotgun Long-range Proton Cannon Heavy Disruptor Cannon Helical Railgun Enhanced Gauss Cannon Enhanced Hardcell Cannon Enhanced Hardcell Cannon Heavy Shock Bomb Launcher Thermoblaster Thunder Hammer [Rating: 140] Favorites ----------- Power Improved Deuterium Engine Engine Improved Deuterium Engine Power Core Neutrino Core Reactor Reinforced Antimatter Reactor Propulsion Wheel Treads Armored Treads Leg Aluminum Leg Wheel Wheel Utility High-capacity Storage Unit Device Advanced Heat Sink Storage High-capacity Storage Unit Processor Improved Target Analyzer Hackware System Shield Protection Improved Medium Armor Plating Weapon Assault Rifle Energy Gun High-powered Shock Rifle Energy Cannon Long-range Proton Cannon Ballistic Gun Assault Rifle Ballistic Cannon Heavy Flak Cannon Launcher Heavy Shock Bomb Launcher Impact Weapon Thunder Hammer Slashing Weapon Companion Sword Special Melee Weapon Datajack Build | -11 -10 -10 -7 -7 -5 -5 -5 -5 -4 -4 ------- Run | Yrd Mat Sub Rec Scr Fac Upp Upp War Pro Fac Slots Evolved 12 | . . . . . 10 . . . . 2 Power 1 | . . . . . . . . . . 1 Propulsion 1 | . . . . . 1 . . . . . Utility 9 | . . . . . 8 . . . . 1 Weapon 1 | . . . . . 1 . . . . . Parts Attached 172 | 7 13 5 7 18 38 7 7 10 7 53 Power 17 | 1 1 . 1 1 3 1 2 1 . 6 Engine 5 | 1 1 . 1 1 . 1 . . . . Core 5 | . . . . . 2 . 2 . . 1 Reactor 7 | . . . . . 1 . . 1 . 5 Propulsion 29 | 2 5 3 . 3 6 2 . 2 . 6 Treads 12 | . 1 . . 1 3 2 . 2 . 3 Leg 5 | 2 1 . . . 1 . . . . 1 Wheel 12 | . 3 3 . 2 2 . . . . 2 Hover . | . . . . . . . . . . . Flight . | . . . . . . . . . . . Utility 70 | 2 2 1 1 5 19 3 4 5 2 26 Device 34 | 1 . . . 1 10 2 2 1 . 17 Storage 5 | 1 1 . 1 . 2 . . . . . Processor 7 | . . . . . 1 . . 1 1 4 Hackware 3 | . . . . . 1 . . . . 2 Protection 21 | . 1 1 . 4 5 1 2 3 1 3 Artifact . | . . . . . . . . . . . Weapon 56 | 2 5 1 5 9 10 1 1 2 5 15 Energy Gun 19 | . . . 3 4 6 . 1 . 2 3 Energy Cannon 9 | . . . . 1 . . . . 2 6 Ballistic Gun 13 | 2 2 . 1 1 3 . . . 1 3 Ballistic Cannon 6 | . . . . 2 1 1 . 1 . 1 Launcher 5 | . 2 1 . . . . . 1 . 1 Special Weapon . | . . . . . . . . . . . Impact Weapon 2 | . 1 . . . . . . . . 1 Slashing Weapon 1 | . . . . 1 . . . . . . Piercing Weapon . | . . . . . . . . . . . Special Melee Weapon 1 | . . . 1 . . . . . . . Unidentified Prototypes 13 | . . . . 1 3 1 . 1 3 4 Corrupted Parts 1 | . . . . . . . . 1 . . System Corruption 4 | . . . . . . . . 4 . . Parts Lost 53 | . . 5 . . 5 . 3 . 6 34 Power 6 | . . 1 . . 1 . . . . 4 Propulsion 14 | . . 2 . . 2 . 2 . 1 7 Utility 25 | . . 1 . . 1 . 1 . 5 17 Weapon 8 | . . 1 . . 1 . . . . 6 Highest Loss Streak 15 | . . 5 . . 3 . 2 . 6 15 To Critical Strikes 2 | . . . . . . . . . . 2 Average Backups 18 | 4 14 19 19 18 15 19 19 19 19 18 Power . | . . 1 . . . . . . 1 1 Propulsion 2 | 2 5 4 4 3 1 1 1 1 . . Utility 6 | . 2 4 6 6 5 9 8 9 7 2 Weapon 9 | . 4 7 7 8 9 9 9 9 10 14 Tool/Special . | . . . . . . . . . . . Unused Backups 43 | . 7 . 1 15 2 1 . 4 1 12 Power 1 | . . . . . . . . . . 1 Propulsion 12 | . 5 . . 5 . . . . . 2 Utility 18 | . 2 . 1 7 . 1 . 2 1 4 Weapon 12 | . . . . 3 2 . . 2 . 5 Tool/Special . | . . . . . . . . . . . Average Slot Usage (%) 97 | . 99 89 99 99 86 99 98 100 99 92 Engine 6 | . 14 10 14 14 1 4 1 . . . Reactor 2 | . . . . . . . . . 5 8 Treads 9 | . 7 9 . 11 5 5 5 11 16 10 Leg 1 | . 10 . . . . . . . . . Wheel 9 | . 10 13 28 16 10 11 9 4 . 3 Device 14 | . 7 . . . 19 27 22 23 22 16 Storage 8 | . 14 14 14 13 4 5 5 5 5 5 Processor 5 | . . . . . . 5 5 5 5 19 Hackware 1 | . . . . . 4 . . . . 5 Protection 14 | . 6 12 13 13 16 18 23 23 22 4 Energy Gun 7 | . . . 2 21 4 11 6 3 . 1 Energy Cannon 1 | . . . . 1 . . . . . 5 Ballistic Gun 6 | . 25 25 25 3 5 . . . 5 3 Ballistic Cannon 4 | . . . . . 4 4 9 11 10 2 Peak Build Rating 140 | 9 11 9 13 30 76 77 81 97 103 140 Average Rating 63 | 5 9 8 11 24 66 73 77 82 97 119 On Entrance 45 | . 9 9 8 12 28 76 76 81 97 101 Avg Prop Armor Cover (%) 7 | . 9 9 . 10 3 3 3 7 . 9 Naked Turns 8 | . . . . . 8 . . . . . Heaviest Build 145 | 13 53 52 54 66 123 108 115 128 126 145 Greatest Support 78 | 20 26 32 20 28 28 20 20 76 78 78 Greatest Overweight (x) 12 | 2 3 3 2 4 10 5 11 12 1 7 Average Overweight (x) 3 | . 1 2 2 2 3 4 6 10 1 2 Largest Inventory Capacity 20 | 8 20 20 20 20 20 20 20 20 20 20 Average Capacity 19 | 7 15 20 20 19 17 20 20 20 20 20 Most Carried 20 | 6 20 20 20 20 20 20 20 20 20 20 Average Carried 18 | 4 14 19 19 19 15 19 19 19 19 19 Final Capacity 20 | 8 20 20 20 20 20 20 20 20 20 20 Final Carried 20 | 6 20 17 20 20 20 20 20 20 20 14 Scrap Suit Usage (%) 1 | . . . . . 27 . . . . . Parts Cannibalized 3 | . . . . . 3 . . . . . Class Distribution -------------------- 28% | Derelict-Tank 24% | Mutant 18% | Scavenger-Tank 17% | Derelict-Mutant Dominant Class ---------------- Mutant | -10/Materials Mutant | -10/Subcaves Mutant | -7/Recycling Derelict-Mutant | -7/Scraptown Derelict-Tank | -5/Factory Scavenger-Tank | -5/Upper Caves Scavenger-Tank | -5/Upper Caves Derelict-Tank | -5/Warlord Derelict-Tank | -4/Proximity Caves Derelict-Tank | -4/Factory Resources | -11 -10 -10 -7 -7 -5 -5 -5 -5 -4 -4 ----------- Run | Yrd Mat Sub Rec Scr Fac Upp Upp War Pro Fac Matter Collected 6401 | 300 470 69 146 537 1333 610 370 100 675 1791 Remotely . | . . . . . . . . . . . Salvage Created 7196 | 110 395 108 146 99 1008 308 235 . 580 4207 Parts 356 | 6 35 7 5 9 51 8 12 . 28 195 Haulers Intercepted 1 | . 1 . . . . . . . . . Recyclers Shooed 4 | 1 . . . . 1 . . . . 2 Parts Field Recycled . | . . . . . . . . . . . Retrieved Matter . | . . . . . . . . . . . Parts Self-Destructed 43 | . . 4 . . . 2 8 . 29 . Prevented 12 | . . . . . . 5 4 . 3 . Parts Restored . | . . . . . . . . . . . Kills | -11 -10 -10 -7 -7 -5 -5 -5 -5 -4 -4 ------- Run | Yrd Mat Sub Rec Scr Fac Upp Upp War Pro Fac Combat Hostiles Destroyed 122 | . 13 6 1 2 22 2 5 . 16 55 Melee 6 | . 4 . . 1 . . . . . 1 Guns 55 | . 1 2 . . 16 1 5 . 8 22 Cannons 25 | . . . . 1 6 1 . . 2 15 AOE 24 | . 8 4 . . . . . . 5 7 Classes Destroyed 20 | 2 4 2 . 2 3 2 1 . . 4 Worker 3 | . . . . . . . . . . 3 Builder 4 | . . . . . 2 . . . . 2 Tunneler 3 | 2 . . . . . . . . . 1 Hauler 1 | . 1 . . . . . . . . . Recycler 6 | 1 1 . 1 . . . . . . 3 Mechanic 1 | . . . . . . . . . . 1 Operator 1 | . . . . . . . . . . 1 Drone 2 | . . . . . . . . . . 2 Watcher 8 | . 2 . . . 1 . . . . 5 Swarmer 33 | . 9 4 . . 5 . . . 6 9 Grunt 43 | . 4 . . . 10 1 . . 6 22 Brawler 1 | . . . . . 1 . . . . . Duelist 3 | . . . . . . . . . . 3 Sentry 10 | . . 1 1 . 2 1 1 . 2 2 Hunter 8 | . . . . . . . 2 . . 6 Programmer 21 | . . . . . 4 . 2 . 2 13 Subdweller 1 | . . 1 . . . . . . . . Bolteater 1 | . . . . 1 . . . . . . Guru 1 | . . . . 1 . . . . . . Decomposer 1 | . . . . . . 1 . . . . Samaritan 1 | . . . . . . 1 . . . . Best Kill Streak 10 | 3 3 5 1 1 5 1 2 . 10 8 Combat Bots Only 10 | . 3 5 1 1 5 1 2 . 10 8 Max Kills in Single Turn 3 | 1 3 3 1 1 2 2 1 . 2 3 Gunslinging . | . . . . . . . . . . . Exploded 3 | . 3 3 . . . . . . 2 3 Melee 1 | . 1 . . 1 . . . . . 1 Uniques/NPCs Destroyed . | . . . . . . . . . . . Combat | -11 -10 -10 -7 -7 -5 -5 -5 -5 -4 -4 -------- Run | Yrd Mat Sub Rec Scr Fac Upp Upp War Pro Fac Hostile Shots Fired 1034 | . 28 23 36 5 165 10 64 1 153 549 Missed 301 | . 9 8 19 1 26 2 20 1 40 175 Hits 733 | . 19 15 17 4 139 8 44 . 113 374 Melee 59 | . . . . 2 17 . . . . 40 Projectile 674 | . 19 15 17 2 122 8 44 . 113 334 Critical Strikes 41 | . . . . . 5 1 2 . 4 29 Part Disruptions 1 | . . . . . . . . . . 1 Damage Taken 14225 | . 254 531 135 51 2744 139 679 . 1954 7738 Core 2244 | . 31 58 12 . 709 17 83 . 164 1170 Absorbed by Shields 1773 | . . . . . 517 43 168 . 436 609 Ignored by Resistances 406 | . . . . . 247 . 19 . . 140 Regen/Repaired (Parts) 579 | . 18 . . 335 21 . . 205 . . Core Remaining (%) 53 | 100 . . . 59 . . . . 2 . Volleys Fired 454 | 5 22 14 45 1 64 69 23 . 66 145 Largest 3 | 2 2 2 2 1 3 3 3 . 3 3 Hottest 337 | 40 50 50 112 40 185 165 200 . 337 307 Shots Fired 873 | 10 38 25 58 1 161 81 53 . 102 344 Gun 461 | 10 31 20 58 . 119 12 24 . 28 159 Cannon 379 | . . . . 1 42 69 29 . 70 168 Launcher 33 | . 7 5 . . . . . . 4 17 Special . | . . . . . . . . . . . Kinetic 534 | 10 31 20 12 1 120 69 29 . 90 152 Thermal 95 | . . . 11 . . . 15 . 12 57 Explosive 12 | . 7 5 . . . . . . . . Electromagnetic 232 | . . . 35 . 41 12 9 . . 135 Robot Hit Streak 19 | 4 7 12 19 9 9 2 14 . 11 12 Robot Miss Streak 8 | 1 3 1 1 . 7 1 6 . 4 8 Penetration Max 3 | . . . . . . . . . 1 3 Secondary Targets 6 | . . . . . 2 . . . . 4 Max Gunslinging Chain 1 | . . . . . 1 . . . . 1 Shots Hit Robots 483 | 6 34 21 19 4 124 14 29 . 36 196 Core Hits 359 | 3 21 8 5 1 113 7 13 . 46 142 Critical Kills 16 | . 2 . . . . . . . 1 13 Critical Parts Destroyed 19 | . 1 . . . . . . . 3 15 Critical Strikes 64 | . 3 . 1 . 8 1 2 . 6 43 Burn 7 | . . . 1 . . . . . 2 4 Destroy 29 | . . . . . . . . . 4 25 Blast 13 | . . . . . 5 1 1 . . 6 Corrupt 8 | . . . . . 3 . 1 . . 4 Smash 7 | . 3 . . . . . . . . 4 Melee Attacks 100 | . 28 4 1 14 . 5 . . 1 47 Impact 79 | . 28 4 . . . . . . . 47 Slashing 19 | . . . . 13 . 5 . . 1 . Piercing . | . . . . . . . . . . . Sneak Attacks 6 | . 2 . 1 1 . 1 . . . 1 Combat Hostiles 1 | . 1 . . . . . . . . . Follow-up Attacks . | . . . . . . . . . . . Damage Inflicted 17394 | 79 952 563 246 100 2840 499 844 . 2445 8826 Guns 5778 | 79 255 237 246 . 2029 132 401 . 573 1826 Cannons 5291 | . . . . 28 811 149 443 . 498 3362 Explosions 5221 | . 355 326 . . . . . . 1374 3166 Melee 1104 | . 342 . . 72 . 218 . . . 472 Ramming . | . . . . . . . . . . . Kinetic 6273 | 79 255 237 100 28 2198 149 443 . 927 1857 Thermal 4828 | . . . 146 . . . 307 . 1518 2857 Explosive 681 | . 355 326 . . . . . . . . Electromagnetic 4508 | . . . . . 642 132 94 . . 3640 Impact 814 | . 342 . . . . . . . . 472 Slashing 290 | . . . . 72 . 218 . . . . Piercing . | . . . . . . . . . . . Highest Corruption 40 | . 3 10 10 . 4 4 5 4 . 40 Average Corruption 5 | . 2 4 10 . 3 1 2 4 . 5 Corruption Purged 25 | . . . . . 7 4 5 . . 9 Corruption Blocked . | . . . . . . . . . . . Effects 127 | . 9 6 43 . 10 . 1 . . 58 Message Errors 37 | . 3 2 16 . 2 . . . . 14 Matter Fused 28 | . 2 2 8 . 3 . 1 . . 12 Heat Flow Errors 14 | . 1 1 2 . 1 . . . . 9 Energy Discharges 11 | . 1 . 4 . 2 . . . . 4 Parts Fused 2 | . . . 1 . . . . . . 1 Data Loss (minor) 17 | . . . 7 . 2 . . . . 8 Data Loss (major) 6 | . 1 1 2 . . . . . . 2 Misfires 10 | . . . 3 . . . . . . 7 Alerts 1 | . 1 . . . . . . . . . Misdirections 1 | . . . . . . . . . . 1 Overload Shots 5 | . . . . . . . . . . 5 Overflow Damage 673 | . 49 . . 12 27 60 31 . 50 444 Projectiles 105 | . . . . . 27 . 31 . . 47 Explosions 322 | . 32 . . . . . . . 50 240 Melee 246 | . 17 . . 12 . 60 . . . 157 Knockbacks 50 | . 2 . . . 7 1 10 . 13 17 Impact 6 | . 2 . . . . . . . . 4 Kinetic 39 | . . . . . 7 1 9 . 10 12 Secondary 5 | . . . . . . . 1 . 3 1 Self-Inflicted Damage 354 | . 53 . . . . . . . . 301 Shots 10 | . 2 . . . . . . . . 8 Rammed . | . . . . . . . . . . . Targets Rammed . | . . . . . . . . . . . Kicked . | . . . . . . . . . . . Crushed . | . . . . . . . . . . . Highest Temperature 729 | . 154 143 306 14 560 15 233 . 200 729 Average Temperature 149 | . 77 87 121 7 188 7 94 . 90 141 Received Heat Transfer 1751 | . 66 75 48 12 466 43 18 . 410 613 Effects 31 | . . . . . 18 . . . . 13 Shutdowns 10 | . . . . . 6 . . . . 4 Energy Bleed 6 | . . . . . 3 . . . . 3 Interference 8 | . . . . . 4 . . . . 4 Matter Decay 1 | . . . . . 1 . . . . . Short Circuit 1 | . . . . . . . . . . 1 Damage (minor) 1 | . . . . . 1 . . . . . Damage (major) 1 | . . . . . 1 . . . . . Damage (core) 3 | . . . . . 2 . . . . 1 Siege Activations . | . . . . . . . . . . . Martial Activations . | . . . . . . . . . . . Shielding Activations . | . . . . . . . . . . . Robots Disrupted 1 | . . . . . . . . . . 1 Combat Hostiles 1 | . . . . . . . . . . 1 Robots Corrupted 10 | . . . . . . . . . . 10 Combat Hostiles 10 | . . . . . . . . . . 10 Parts Fried 34 | . . . . . . . . . . 34 Impact Corruptions 6 | . 1 . . . . . . . . 5 Robots Melted 2 | . . . 1 . . . . . 1 . Combat Hostiles 2 | . . . 1 . . . . . 1 . Parts Melted 9 | . . . 3 . . . . . . 6 Heat Transferred 6954 | . . . 444 . . . 481 . 2180 3849 Parts Sabotaged . | . . . . . . . . . . . Parts Stolen . | . . . . . . . . . . . Parts Stripped . | . . . . . . . . . . . Power Chain Reactions 7 | . . . . . . . . . . 7 Alert | -11 -10 -10 -7 -7 -5 -5 -5 -5 -4 -4 ------- Run | Yrd Mat Sub Rec Scr Fac Upp Upp War Pro Fac Maximum Alert Level 4 | . . . . . . . . . . 4 Low Security (%) 71 | 100 100 . 100 . 100 . . . . 32 Level 1 13 | . . . . . . . . . . 30 Level 2 1 | . . . . . . . . . . 2 Level 3 11 | . . . . . . . . . . 25 Level 4 3 | . . . . . . . . . . 7 Level 5 . | . . . . . . . . . . . High Security . | . . . . . . . . . . . Max Security . | . . . . . . . . . . . Peak Influence 1404 | 10 150 . 56 . 192 . . . . 1404 Initial 114 | . . . 38 . . . . . . 114 Average 235 | . 49 . 14 . 84 . . . . 485 Influence Increases 4425 | 15 504 130 258 . 738 45 135 . 330 2270 Destroy 0b10 Robot/C 2440 | . 260 100 20 . 500 40 100 . 320 1100 Destroy 0b10 Robot/NC 145 | 15 20 . 5 . 20 5 . . . 80 Destroy Leader 380 | . 56 . . . 94 . 20 . 10 200 Allied During Kill 17 | . . . . . 17 . . . . . Successful Hack 169 | . 33 . 53 . 3 . . . . 80 Select Force Hacks 240 | . 60 . 180 . . . . . . . Disable Machine 300 | . . . . . 30 . . . . 270 Anti-Garrison Action 150 | . . . . . . . . . . 150 Destroy Structure 344 | . 60 . . . 14 . . . . 270 Partial Spotted 30 | . . . . . . . . . . 30 Lose Combat Pursuer 210 | . 15 30 . . 60 . 15 . . 90 Influence Decreases 3115 | 15 450 104 338 . 570 210 138 . 147 1143 Entered New Map 202 | . . 26 42 . . 63 2 . . 69 Time Decay 2333 | 15 450 68 296 . 460 147 116 . 87 694 Lost Part 480 | . . 10 . . 50 . 20 . 60 340 Lost Ally 100 | . . . . . 60 . . . . 40 Squads Dispatched 39 | . 6 . . . 7 . . . . 26 Investigation 13 | . 6 . . . 1 . . . . 6 Extermination 10 | . . . . . 2 . . . . 8 Reinforcement 5 | . . . . . 2 . . . . 3 Assault 10 | . . . . . 2 . . . . 8 Garrison 1 | . . . . . . . . . . 1 Intercept . | . . . . . . . . . . . Searches Triggered . | . . . . . . . . . . . Construction Impeded 4 | . . . . . 2 . . . . 2 Haulers Reinforced 1 | . . . . . . . . . . 1 Active Scanning Responses . | . . . . . . . . . . . Cargo Convoy Interrupts . | . . . . . . . . . . . Stealth | -11 -10 -10 -7 -7 -5 -5 -5 -5 -4 -4 --------- Run | Yrd Mat Sub Rec Scr Fac Upp Upp War Pro Fac Distress Signals 6 | . 2 . . . 1 . . 1 . 2 Communications Jammed . | . . . . . . . . . . . Distress Signals . | . . . . . . . . . . . Times Spotted 220 | . 17 8 1 9 39 2 6 29 18 91 Peak Tracking Total 19 | . 3 6 1 4 5 1 2 9 12 19 Tactical Retreats 14 | . 2 2 . 2 2 . 1 . . 5 Traps | -11 -10 -10 -7 -7 -5 -5 -5 -5 -4 -4 ------- Run | Yrd Mat Sub Rec Scr Fac Upp Upp War Pro Fac Traps Triggered 7 | . 2 . . . 1 . . . . 4 Indirectly . | . . . . . . . . . . . Trap Hack Attempts . | . . . . . . . . . . . Triggered . | . . . . . . . . . . . Disarmed . | . . . . . . . . . . . Reprogrammed . | . . . . . . . . . . . Reused 1 | . . . . . . . . 1 . . Traps Extracted . | . . . . . . . . . . . Installed 1 | . . . . . . . . 1 . . Triggered 1 | . . . . . . . . 1 . . Most Traps Carried 1 | . . . . . . . 1 1 . . Machines | -11 -10 -10 -7 -7 -5 -5 -5 -5 -4 -4 ---------- Run | Yrd Mat Sub Rec Scr Fac Upp Upp War Pro Fac Machines Disabled 32 | . . . . 4 2 1 . . 6 19 Max in Single Turn 6 | . . . . 1 1 1 . . 6 4 Garrison Access 3 | . . . . . 1 . . . . 2 Machines Repaired . | . . . . . . . . . . . Machines Dismantled . | . . . . . . . . . . . Machines Sabotaged . | . . . . . . . . . . . Overloaded Fab Kills . | . . . . . . . . . . . Hacking | -11 -10 -10 -7 -7 -5 -5 -5 -5 -4 -4 --------- Run | Yrd Mat Sub Rec Scr Fac Upp Upp War Pro Fac Machines Accessed 61 | . 11 . 11 9 5 1 . 6 . 18 Terminals 17 | . 8 . 3 . 2 . . . . 4 Fabricators 6 | . . . . . 1 . . . . 5 Repair Stations 4 | . 1 . . . . . . . . 3 Recycling Units 11 | . 2 . 6 . 2 . . . . 1 Scanalyzers 3 | . . . . . . . . . . 3 Garrison Access 2 | . . . . . . . . . . 2 Total Hacks 250 | . 38 . 54 65 10 1 . 13 . 69 Successful 177 | . 20 . 39 65 6 1 . 13 . 33 Failed 72 | . 18 . 15 . 4 . . . . 35 Catastrophic 16 | . 5 . 4 . 1 . . . . 6 Database Lockouts 1 | . . . . . . . . . . 1 Manual 54 | . 26 . 11 . 1 . . 1 . 15 Terminals 62 | . 31 . 11 . 5 . . . . 15 Fabricators 15 | . . . . . 2 . . . . 13 Repair Stations 7 | . 2 . . . . . . . . 5 Recycling Units 28 | . 5 . 18 . 3 . . . . 2 Scanalyzers 30 | . . . . . . . . . . 30 Garrison Access 4 | . . . . . . . . . . 4 Terminal Hacks 122 | . 11 . 28 65 2 1 . 13 . 2 Record 102 | . 1 . 24 64 . 1 . 12 . . Part Schematic 6 | . 2 . 3 . . . . . . 1 Robot Analysis 3 | . 3 . . . . . . . . . Prototype ID Bank 2 | . 2 . . . . . . . . . Open Door 2 | . . . . 1 . . . 1 . . Open DSF 1 | . . . . . 1 . . . . . Branch Access Points 1 | . . . . . . . . . . 1 Terminal Index 1 | . 1 . . . . . . . . . Locate Traps 2 | . 2 . . . . . . . . . Recall Reinforcements 1 | . . . . . 1 . . . . . Release Object 1 | . . . 1 . . . . . . . Fabricator Hacks 5 | . . . . . 1 . . . . 4 Network Status 1 | . . . . . . . . . . 1 Build 4 | . . . . . 1 . . . . 3 Repair Station Hacks 3 | . 2 . . . . . . . . 1 Scan Component 2 | . 1 . . . . . . . . 1 Repair 1 | . 1 . . . . . . . . . Recycling Unit Hacks 8 | . 1 . 4 . 2 . . . . 1 Report Inventory 2 | . . . 1 . 1 . . . . . Retrieve Components 6 | . 1 . 3 . 1 . . . . 1 Scanalyzer 20 | . . . . . . . . . . 20 Insert Component 5 | . . . . . . . . . . 5 Analyze 9 | . . . . . . . . . . 9 Retrieve Study 6 | . . . . . . . . . . 6 Garrison Access Hacks 1 | . . . . . . . . . . 1 Seal Access 1 | . . . . . . . . . . 1 Unauthorized Hacks 18 | . 6 . 7 . 1 . . . . 4 Terminals 8 | . 4 . 1 . 1 . . . . 2 Botnet 6 | . 3 . 1 . 1 . . . . 1 Operators 2 | . 1 . . . . . . . . 1 Fabricators . | . . . . . . . . . . . Repair Stations 1 | . . . . . . . . . . 1 Mechanics 1 | . . . . . . . . . . 1 Recycling Units 9 | . 2 . 6 . . . . . . 1 Tunnel 8 | . 2 . 6 . . . . . . . Fedlink 1 | . . . . . . . . . . 1 Scanalyzers . | . . . . . . . . . . . Garrison Access . | . . . . . . . . . . . Data Cores Recovered 1 | . . . . . . . . . . 1 Used . | . . . . . . . . . . . Hacking Detections 38 | . 11 . 8 . 3 . . . . 16 Full Trace Events 9 | . 3 . 3 . 1 . . . . 2 Feedback Events 2 | . 1 . . . 1 . . . . . Corruption 2 | . 1 . . . 1 . . . . . Feedback Blocked . | . . . . . . . . . . . Robot Schematics Acquired . | . . . . . . . . . . . Robots Built 3 | . . . . . 3 . . . . . Authchips . | . . . . . . . . . . . Time 169 | . . . . . 169 . . . . . Total Robot Build Rating 18 | . . . . . 18 . . . . . Part Schematics Acquired 10 | . 2 . 3 . . . . . . 5 Parts Built 6 | . . . . . . . . . . 6 Authchips . | . . . . . . . . . . . Time 272 | . . . . . . . . . . 272 Total Part Build Rating 52 | . . . . . . . . . . 52 Part Studies Acquired 5 | . . . . . . . . . . 5 Parts Repaired 1 | . 1 . . . . . . . . . Time 32 | . 32 . . . . . . . . . Parts Recycled . | . . . . . . . . . . . Recycled Matter . | . . . . . . . . . . . Retrieved Matter . | . . . . . . . . . . . Retrieved Components 15 | . 1 . 6 . . . . . . 8 Parts Scanalyzed 4 | . . . . . . . . . . 4 Part Schematics Acquired 4 | . . . . . . . . . . 4 Parts Damaged 1 | . . . . . . . . . . 1 Bothacking | -11 -10 -10 -7 -7 -5 -5 -5 -5 -4 -4 ------------ Run | Yrd Mat Sub Rec Scr Fac Upp Upp War Pro Fac Used RIF Installer . | . . . . . . . . . . . Robots Hacked 2 | . . . 1 1 . . . . . . Non-combat 1 | . . . 1 . . . . . . . Combat 1 | . . . . 1 . . . . . . Robot Hacks Applied 2 | . . . 1 1 . . . . . . parse_system 1 | . . . . 1 . . . . . . find_recycling 1 | . . . 1 . . . . . . . Relay Couplers Released 3 | . . . . . 2 . . . . 1 Machine Destruction 3 | . . . . . 2 . . . . 1 Fabnet Peak Effective % . | . . . . . . . . . . . Robots Rewired . | . . . . . . . . . . . Allies Hacked . | . . . . . . . . . . . Hacks Repelled . | . . . . . . . . . . . Allies | -11 -10 -10 -7 -7 -5 -5 -5 -5 -4 -4 -------- Run | Yrd Mat Sub Rec Scr Fac Upp Upp War Pro Fac Total Allies 3 | . . . . . 3 . . . . . Largest Group 3 | . . . . . 3 . . . . . Highest-Rated Group 90 | . . . . . 90 . . . . . Highest-Rated Ally 30 | . . . . . 30 . . . . . Total Orders 29 | . . . . . 4 6 4 . 8 7 STAY 3 | . . . . . . . . . 2 1 ROAM 2 | . . . . . 2 . . . . . FOLLOW 4 | . . . . . . . 1 . 1 2 EXPLORE 12 | . . . . . 1 4 2 . 3 2 RETURN 8 | . . . . . 1 2 1 . 2 2 Ally Attacks 20 | . . . . . 20 . . . . . Total Damage 763 | . . . . . 763 . . . . . Kills 4 | . . . . . 4 . . . . . Allies Corrupted 1 | . . . . . . . . . . 1 Allies Melted 7 | . . . . 5 2 . . . . . Intel | -11 -10 -10 -7 -7 -5 -5 -5 -5 -4 -4 ------- Run | Yrd Mat Sub Rec Scr Fac Upp Upp War Pro Fac Active Infowar (turns) 6123 | 29 1649 . . . . . . . 236 4209 Sensors 1771 | . . . . . . . . . . 1771 Terrain 2641 | 29 1649 . . . . . . . . 963 Decoding 3804 | . . . . . . . . . 236 3568 Jamming 9 | . . . . . . . . . . 9 Robot Analysis Total 3 | . 3 . . . . . . . . . Derelict Logs Recovered 6 | . . 1 . 2 . 1 1 . 1 . Drone Launches 20 | . . . . . 2 6 . . 2 10 Drone Recoveries 9 | . . . . . 2 4 . . 1 2 Decoded 0b10 Intel 49 | . . . . . . . . . . 49 Patrols 26 | . . . . . . . . . . 26 Investigations 3 | . . . . . . . . . . 3 Reinforcements 7 | . . . . . . . . . . 7 Guards 13 | . . . . . . . . . . 13 Exploration | -11 -10 -10 -7 -7 -5 -5 -5 -5 -4 -4 ------------- Run | Yrd Mat Sub Rec Scr Fac Upp Upp War Pro Fac Turns Passed 25312 | 111 2898 233 1295 5228 1467 2853 1915 1681 3317 4314 Spaces Moved 12493 | 61 1172 121 1013 3611 726 1473 914 665 1211 1526 Core 24 | 8 . . . . 16 . . . . . Treads 2081 | . . . . . 64 . . 31 1211 775 Legs 447 | 53 393 . . . 1 . . . . . Wheels 9941 | . 779 121 1013 3611 645 1473 914 634 . 751 Hover . | . . . . . . . . . . . Flight . | . . . . . . . . . . . Fastest Speed 50 | 50 105 110 110 110 50 140 155 230 249 130 Average Speed 164 | 118 129 141 110 137 147 145 179 245 249 209 Slowest Speed 260 | 150 145 145 110 160 250 155 245 260 255 249 Overloaded Moves . | . . . . . . . . . . . Propulsion Burnouts . | . . . . . . . . . . . Robots Hopped . | . . . . . . . . . . . Potential Cave-ins 2 | . . . . . . . 2 . . . Cave-ins Triggered 1 | . . 1 . . . . . . . . Exploration Rate (%) 66 | 4 100 12 99 93 15 98 92 88 87 40 Regions Visited 10 Branch Regions 7 Pre-discovered Areas 10 | . 2 . 6 1 . . . 1 . . Known Exits Taken 2 | . . 1 . . . . . . 1 . Unknown Exits Taken 8 | 1 1 . 1 1 1 1 1 1 . . Scrap Searched 14 | . . . . 4 . 4 2 . 4 . Spaces Dug 179 | . 10 2 . 6 . 62 8 . 50 41 Terrain Destroyed 379 | . 53 28 . 6 6 67 15 . 75 129 Melee 50 | . 8 2 . 6 . . . . 1 33 Projectile 176 | . . . . . 6 67 15 . 55 33 AOE 153 | . 45 26 . . . . . . 19 63 Terrain Rammed . | . . . . . . . . . . . Walls Destroyed . | . . . . . . . . . . . Machines Disabled . | . . . . . . . . . . . Actions | -11 -10 -10 -7 -7 -5 -5 -5 -5 -4 -4 --------- Run | Yrd Mat Sub Rec Scr Fac Upp Upp War Pro Fac Total 16327 | 86 2461 148 1133 3865 979 2104 1147 720 1417 2267 Wait 2584 | 8 1158 . 48 123 56 520 180 16 109 366 Move 12483 | 60 1171 120 1012 3610 725 1472 913 664 1210 1526 Hop . | . . . . . . . . . . . Pick Up 206 | 6 33 1 8 43 45 7 6 12 9 36 Fast Attach 71 | 7 . . . 10 20 6 1 3 . 24 Attach 76 | . 2 4 2 6 23 3 5 2 6 23 Detach 8 | . . . . 1 4 . . 1 . 2 Swap 174 | . 27 5 13 15 23 8 11 5 13 54 Drop 166 | . 20 . 4 42 19 14 8 16 3 40 Fire 454 | 5 22 14 45 1 64 69 23 . 66 145 Melee 100 | . 28 4 1 14 . 5 . . 1 47 Ram . | . . . . . . . . . . . Kick . | . . . . . . . . . . . Crush . | . . . . . . . . . . . Escape Stasis . | . . . . . . . . . . . Rewire . | . . . . . . . . . . . Trap 1 | . . . . . . . . 1 . . Miscellaneous 4 | . . . . . . . . . . 4 Route ------- -11/Scrapyard -10/Materials (discovered 6 exits: [*Mat x3] / [*Min x2] / [*Sub]) -10/Subcaves -7/Recycling (discovered 2 exits: *Fac / *Scr) -7/Scraptown (discovered 2 exits: *Fac x2) -5/Factory -5/Upper Caves -5/Upper Caves (discovered 2 exits: *Fac / *War) -5/Warlord -4/Proximity Caves -4/Factory (discovered 3 exits: *Res / *Upp x2) History --------- Turn | Location | Event 17 | -11/Scrapyard | Discovered new exit (range 15) 112 | -11/Scrapyard | Entered Materials 303 | -10/Materials | Build established: Mutant 568 | -10/Materials | Discovered new exit (range 5) 712 | -10/Materials | Derelicts attacked the area 736 | -10/Materials | Discovered new exit (range 12) 1384 | -10/Materials | Discovered new exit (range 9) 1566 | -10/Materials | Discovered new exit (range 13) 2207 | -10/Materials | Discovered new exit (range 12) 2447 | -10/Materials | Repaired Sub. Monowheel 2461 | -10/Materials | Discovered new exit (range 4) 3010 | -10/Materials | Entered Subcaves 3011 | -10/Subcaves | Approached by a straggling Scientist 3013 | -10/Subcaves | Identified exit to Recycling 3188 | -10/Subcaves | Crushed by falling debris 3188 | -10/Subcaves | System corruption reached 10% 3243 | -10/Subcaves | Entered Recycling 3249 | -7/Recycling | Lost 5 parts (1p2n1u1w) 3918 | -7/Recycling | Discovered new exit (range 8) 4482 | -7/Recycling | Scanned before Scraplab entrance 4515 | -7/Recycling | Discovered new exit (range 2) 4538 | -7/Recycling | Entered Scraptown 4538 | -7/Scraptown | System corruption cleaned by C-Scrubber 4797 | -7/Scraptown | Heard Great Nut preacher, LISTEN AND RECITE! 4809 | -7/Scraptown | Visited UFD Registry 4829 | -7/Scraptown | Visited Fellowship of the Rings 4845 | -7/Scraptown | Visited Cave Peace 4883 | -7/Scraptown | Visited Comm Corps 4924 | -7/Scraptown | Visited CR-KLE's Repair Center 4948 | -7/Scraptown | Visited Cyclists 4981 | -7/Scraptown | Visited Junk Repository 5044 | -7/Scraptown | Scanned Subdweller tech in exchange for log data 5046 | -7/Scraptown | Learned Research garrison access intel 5047 | -7/Scraptown | Learned 8 Research zone layouts 5278 | -7/Scraptown | Visited The Evicted 5293 | -7/Scraptown | Registered with UFD as "Softtank" 5350 | -7/Scraptown | Visited Supply Room 5379 | -7/Scraptown | Visited Curators Association 5423 | -7/Scraptown | Visited Scrapoid Pod Storage 5444 | -7/Scraptown | Visited DA-N13 Charitable Foundation 5448 | -7/Scraptown | Found DCF Scrap (29 items) 5624 | -7/Scraptown | Discovered new exit (range 5) 5678 | -7/Scraptown | Visited Sword Containment 5693 | -7/Scraptown | Found Prototype Slashing Weapon 5730 | -7/Scraptown | Visited Derelict Rescue Squad 5766 | -7/Scraptown | Build established: Derelict-Mutant 6035 | -7/Scraptown | Visited Scrapoid Research Area 6070 | -7/Scraptown | Visited Scrap Suit Storage 6164 | -7/Scraptown | Identified Companion Sword 6283 | -7/Scraptown | Discovered new exit (range 11) 6602 | -7/Scraptown | Entered Cyclist Reading Room 6793 | -7/Scraptown | Guru changed UFD alias to "Wavechip" 7598 | -7/Scraptown | Found Scrap Suit 9013 | -7/Scraptown | CR-KLE repaired 6 parts 9288 | -7/Scraptown | Met Optimus 9288 | -7/Scraptown | Accepted into 0bPrime 9622 | -7/Scraptown | Civil war broke out across Scraptown 9704 | -7/Scraptown | Found Surveybot 24 Chip 9715 | -7/Scraptown | Lost 10 allies 9766 | -7/Scraptown | Entered Factory 9766 | -5/Factory | Evolved 10 slots: Propulsion x1, Utility x8, Weapon x1 9855 | -5/Factory | Identified exit to DSF 10030 | -5/Factory | Build established: Derelict-Tank 10573 | -5/Factory | Discovered new exit (range 10) 10926 | -5/Factory | Core integrity fell below 50% 10981 | -5/Factory | Fabricated B-60 Warrior? 10983 | -5/Factory | Released all parts (14) 11020 | -5/Factory | Lost 3 parts (1p1n1w) 11233 | -5/Factory | Entered Upper Caves 11512 | -5/Upper Caves | Build established: Scavenger-Tank 11855 | -5/Upper Caves | Found Alien Artifact 11855 | -5/Upper Caves | Identified Dimensional Node Initializer 11855 | -5/Upper Caves | Initialized slip node 12806 | -5/Upper Caves | Attracted the attention of an 0b10 checkpoint 12919 | -5/Upper Caves | Discovered new exit (range 51) 13587 | -5/Upper Caves | Learned Factory garrison access intel 14086 | -5/Upper Caves | Entered another Upper Caves area 14086 | -5/Upper Caves | Accompanied by 1 ally 14086 | -5/Upper Caves | Discovered new exit (range 11) 14186 | -5/Upper Caves | Spotted B-75 Beast 14409 | -5/Upper Caves | Learned 12 Factory zone layouts 14561 | -5/Upper Caves | Attracted the attention of an 0b10 checkpoint 14634 | -5/Upper Caves | Found DCF Scrap (13 items) 15326 | -5/Upper Caves | Discovered new exit (range 15) 15375 | -5/Upper Caves | Core integrity fell below 20% 15651 | -5/Upper Caves | Build established: Derelict-Tank 16001 | -5/Upper Caves | Entered Warlord 16086 | -5/Warlord | System corruption cleaned by Quarantine Array 17109 | -5/Warlord | Warlord's base attacked by MAIN.C 17142 | -5/Warlord | Learned location of Command (-1) 17145 | -5/Warlord | Learned 4 Access zone layouts 17147 | -5/Warlord | Learned Factory garrison access intel 17147 | -5/Warlord | Learned Research repair station intel 17147 | -5/Warlord | Learned Research security intel 17275 | -5/Warlord | Found Prototype Energy Gun 17279 | -5/Warlord | Found Prototype Energy Gun 17288 | -5/Warlord | Found Prototype Energy Gun 17307 | -5/Warlord | Found Prototype Energy Gun 17443 | -5/Warlord | Rebuked by Warlord 17459 | -5/Warlord | Warlord forces counterattacked 17561 | -5/Warlord | Spotted Executioner 17597 | -5/Warlord | Spotted Striker 17613 | -5/Warlord | Spotted Executioner 17624 | -5/Warlord | Spotted Striker 17629 | -5/Warlord | Spotted Executioner 17632 | -5/Warlord | Spotted Executioner 17650 | -5/Warlord | Discovered new exit (range 14) 17660 | -5/Warlord | Found Prototype Processor 17660 | -5/Warlord | Identified Exp. Core Analyzer 17681 | -5/Warlord | Lost 19 allies 17682 | -5/Warlord | Entered Proximity Caves 17729 | -4/Proximity Caves | Identified exit to Factory 17988 | -4/Proximity Caves | Build established: Scavenger-Tank 18315 | -4/Proximity Caves | Build established: Derelict-Tank 18966 | -4/Proximity Caves | Identified Vortex Rifle (x2) 18967 | -4/Proximity Caves | Identified Vortex Shotgun (x2) 20649 | -4/Proximity Caves | Attracted the attention of an 0b10 base 20704 | -4/Proximity Caves | Destroyed 10 combat bots 20726 | -4/Proximity Caves | Lost 6 parts (1n5u) 20999 | -4/Proximity Caves | Entered Factory 20999 | -4/Factory | Evolved 2 slots: Power x1, Utility x1 21001 | -4/Factory | Loaded intel: 4 garrison access locations 21134 | -4/Factory | Discovered new exit (range 14) 21184 | -4/Factory | Fabricated Enh. Hardcell Cannon? 21955 | -4/Factory | Lost 5 parts (1n3u1w) 22227 | -4/Factory | Central database locked down 22337 | -4/Factory | Fabricated Hyp. Railgun (x2) 22728 | -4/Factory | Build established: Scientist-Tank 22956 | -4/Factory | Fabricated Quantum Reactor (x2) 23281 | -4/Factory | Build established: Mutant 23681 | -4/Factory | Loaded intel: 8 recycling unit locations 23689 | -4/Factory | Discovered new exit (range 46) 23910 | -4/Factory | Destroyed 8 combat bots 24056 | -4/Factory | Identified exit to Research 24179 | -4/Factory | Build established: Machinist-Gunner 24249 | -4/Factory | First assault squad dispatched 24294 | -4/Factory | Lost 5 allies 24407 | -4/Factory | Lost 6 parts (1p2u3w) 24585 | -4/Factory | Found Hvy. Reactive Plating 24588 | -4/Factory | Found Hvy. Reactive Plating 24592 | -4/Factory | Found Hvy. Reactive Plating 24947 | -4/Factory | Identified exit to Upper Caves 25208 | -4/Factory | System corruption reached 10% 25225 | -4/Factory | Core integrity fell below 50% 25253 | -4/Factory | Core integrity fell below 20% 25266 | -4/Factory | System corruption reached 30% 25313 | -4/Factory | Destroyed by G-67 Veteran with Plasma Rifle Last Messages --------------- 25265_ Adv. Cryofiber Web destroyed. 25265_ Adv. Signal Interpreter destroyed. 25265_ System corrupted by crushing effect (+2). 25265_ System corrupted by crushing effect (+3). 25267_ U-05 Engineer lays Concrete. 25271_ Surveybot 24 Chip destroyed. 25271_ System corrupted by crushing effect (+4). 25271_ U-05 Engineer lays Concrete. 25282_ KCT%ZU4WKIX3HBKQNLRL>5 25285_ U-05 Engineer builds a Wall. 25288_ C-45 Heavy ARC bursts open, deploying its payload. 25288_ G-73 Enforcer unfolds itself. 25288_ G-67 Veteran unfolds itself. 25288_ I-47 Archangel unfolds itself. 25292_ C-45 Heavy ARC bursts open, deploying its payload. 25292_ G-67 Veteran unfolds itself. 25292_ I-47 Archangel unfolds itself. 25299_ Hvy. Reactive Plating destroyed. Map ----- +----------------------------------------------------+ | | | | | | | | | | | | | | | | | | | | | | | | | | | | | #########################??#?##### | | #######################?########## | | ################################## | | ################################## | | ################################## | | ######### ! ################ | | ##### "+/ = = !################ | | ##### "%# / ################ | | ##### + ! ################ | | ##### # ################ | | ##### # " ################ | | ##### #@ S"" ################ | | ##### ;g=""" ! ################ | | ##### g##g####################### | | ##### C##g% ############ | | ##### ##pgg[############ | | #### "p ############ """""" | | #### # ]!# ##### """""" | | #### " "/% # + # """""" | | #### # = # # # """""" | | #### [ # # # # | | ######%###! # + + | | ######=######## # # | | ######%###########+### #####/### | | ###### = | | ###### | ### ############### | | ###### = ### ############### | | ######" %= =### ############### | | ######" !% ### ############### | | ######"" ### #### | | ######G ### #### " " " " " | | ######"" ### #### " " " " " | | ######"" ### #### " " " " " | | ######"" ### #### " " " " " | | ###### ### #### " " " " " | | ###### ### #### " " " " " | +----------------------------------------------------+ Best States ------------- Heat Dissipation 81 Coolant Potential 100 Energy Generation 45 Energy Capacity 600 Matter Stores 300 Matter Capacity 300 Sight Range 16 Robot Scan Range 15 Terrain Scan Range 24 Terrain Scan Density 2010 Jamming Range 12 Base Temperature (-) 200 Armor Coverage 1150 Resistance: KI 40 Resistance: TH 20 Core Shielding 20 Phase Shifting 10 Evasion (%) 55 Target Analysis 6 Core Analysis 8 Armor Integrity Analysis 40 Recoil Reduction 9 Kinecelleration 30 Offensive Hacking 11 Defensive Hacking 20 Authchip Count 1 Item Schematics ----------------- Hcp. Storage Unit | -10/Materials | Hacked Hcp. Matter Pod | -10/Materials | Hacked Hvy. Ion Cannon | -7/Recycling | Hacked Imp. EM Pulse Cannon | -7/Recycling | Hacked Variable Charge Gun | -7/Recycling | Hacked Helical Railgun | -4/Factory | Scanalyzed Rnf. Quantum Reactor | -4/Factory | Hacked Hvy. Reactive Plating | -4/Factory | Scanalyzed Hvy. Shock Bomb Launcher | -4/Factory | Scanalyzed Enh. Hardcell Cannon | -4/Factory | Scanalyzed Robot Schematics ------------------ None Fabricated ------------ B-60 Warrior | x3 | -5/Factory | Preloaded Enh. Hardcell Cannon | x2 | -4/Factory | Preloaded Hyp. Railgun | x2 | -4/Factory | Preloaded Quantum Reactor | x2 | -4/Factory | Preloaded Repaired ---------- Sub. Monowheel | 70% | -10/Materials Studied --------- Arm. Medium Treads | -4/Factory | Hacked Lrn. Proton Cannon | -4/Factory | Hacked Rnf. Antimatter Reactor | -4/Factory | Hacked Antimatter Reactor | -4/Factory | Hacked Enh. Gauss Cannon | -4/Factory | Hacked Alien Tech Used ----------------- Dimensional Node Initializer Achievements -------------- A Problem For Future Me Analysis Probe Bob, First Of His Name Construction Begets Destruction Ew, Corruption Fancy Inventory Item+ Junior Dev Live, Flee, And Rebuild Longdome?! Plot Armor Throw Away The Key Uncivil War Well Done Challenges ------------ None Game ------ Seed BraceFusionProtomatter Manual? 0 Play Time 04:22:10 Cumulative 673.8 hours Start 2025.11.07 @ 01:03:17 End 2025.11.07 @ 05:26:17 Sessions 1 Manual Loads 0 Difficulty Rogue Special Mode None Game No. 464 Rogue 464 Adventurer 0 Explorer 0 Win Type - Total 1 Types 1/0/0/0/0/0/0/0/0/0 Lore% 61 Gallery% 66 Achievement% 38 Wizard Run 0 Options --------- Layout 1 ASCII 0 Keyboard 0 Movement Mouse Keybinds 0 Fullscreen 1 Font 20/SmallcapsGlow Map View 54x42 Zoom Use 0% Tactical HUD 1 Map Filters NONE Filters NONE Steam 1 RUN: ca44eb60-4af7-4386-9de5-cd717e3b7260